[Event "Romanian Superleague 2022"]
[Site "Oradea"]
[Date "2022.09.26"]
[Round "6.13"]
[White "Dobre, Claudiu-Cristian"]
[Black "Miroshnichenko, Evgenij"]
[Result "0-1"]
[ECO "A41"]
[WhiteElo "2268"]
[BlackElo "2597"]
[Annotator "TA"]
[PlyCount "80"]
[EventDate "2022.09.21"]
[EventType "team-tourn"]
[EventCountry "ROU"]
[SourceTitle "playchess.com"]
[Source "ChessBase"]
[SourceQuality "1"]
[TimeControl "40/5400+30:1800+30"]

{[%evp 11,80,55,63,44,37,33,47,16,12,0,1,0,8,0,0,0,15,-14,-12,-25,26,28,49,25,27,20,26,0,0,0,14,0,0,0,5,0,0,0,-2,-15,-6,-62,-44,-45,-39,-43,0,-211,-218,-210,-192,-190,-188,-191,-178,-431,-309,-862,-892,-912,-706,-694,-678,-829,-656,-675,-650,-3053,-2185,-1412,-1157]} 1. c4 {[%emt 0:00:04]} g6 {[%emt 0:00:16]} 2. Nf3 {[%emt 0:00:12]} Bg7 {[%emt 0:00:26]} 3. d4 {[%emt 0:00:21]} d6 {[%emt 0:05:16]} 4. Nc3 {[%emt 0:01:37]} e5 {[%emt 0:02:36]} 5. dxe5 {[%emt 0:05:32]} dxe5 {[%emt 0:00:11]} 6. Qxd8+ {[%emt 0:00:06]} Kxd8 {[%emt 0:00:05]} 7. Ng5 {[%emt 0:21:04] A41: 1 d4 d6: Tartakower System and Modern Defence.} Nh6 {[%emt 0:18:13]} 8. Be3 {[%emt 0:19:45]} c6 {[%emt 0:06:03]} 9. O-O-O+ {[%emt 0:00:52] White is slightly better.} Kc7 {[%emt 0:00:11]} 10. Bc5 {[%emt 0:04:54] [#] aiming for Bd6+.} b6 $146 {[%emt 0:01:06]} ({Predecessor:} 10... Rd8 11. Rxd8 Kxd8 12. e4 f6 13. Nf3 Na6 14. Bd6 Ng4 15. Be2 Nxf2 16. Rf1 Ng4 {0-1 (39) Sviridova,V (2144)-Khalafova,N (2279) Chess.com INT 2021}) 11. Bd6+ {[%emt 0:00:42]} Kb7 {[%emt 0:00:04]} 12. e3 {[%emt 0:15:58]} f6 $1 {[%emt 0:03:32]} 13. Nge4 {[%emt 0:01:21]} Nf7 {[%emt 0:02:29]} 14. Be7 {[%emt 0:01:25]} f5 {[%emt 0:02:07]} 15. Nf6 {[%emt 0:04:29][%cal Og2g4]} c5 {[%emt 0:08:36]} ({Black should play} 15... Kc7) 16. Nfd5 {[%emt 0:01:57][%cal Og2g4]} Nc6 {[%emt 0:00:34]} 17. Bf6 {[%emt 0:00:20]} (17. g4 {with more complications.} fxg4 18. Bg2 Bf5 19. Bh4) 17... Bxf6 {[%emt 0:00:48]} 18. Nxf6 {[%emt 0:00:05]} Be6 {[%emt 0:00:32]} 19. f4 {[%emt 0:05:06]} exf4 {[%emt 0:09:08]} 20. exf4 {[%emt 0:00:07]} Nd4 {[%emt 0:00:49]} 21. g3 {[%emt 0:00:13]} Raf8 {[%emt 0:03:10][%cal Ba8f8,Bf8f7,Bf7e7][%mdl 32]} 22. Bg2+ {[%emt 0:02:16]} Kc8 {[%emt 0:00:08]} 23. Rhe1 {[%emt 0:08:54]} Bxc4 {[%emt 0:10:31]} 24. Re7 {[%emt 0:00:15]} Nd8 $1 {[%emt 0:00:03]} 25. Nfd5 {[%emt 0:03:25]} ({Reject} 25. Nxh7 Rf7 26. Rxf7 Nxf7 $17) (25. Rxh7 $2 Rxh7 26. Nxh7 Rh8 $17) 25... Rf7 {[%emt 0:02:25]} 26. Rde1 {[%emt 0:00:24]} ({White should try} 26. Rxf7 $1 $11 Nxf7 27. Re1) 26... Rhf8 $1 $15 {[%emt 0:01:23]} 27. b3 {[%emt 0:01:31]} Ba6 {[%emt 0:00:00]} 28. Nc7 {[%emt 0:00:35] Black must now prevent Rxf7.} Ne2+ {[%emt 0:03:44]} 29. Nxe2 $2 {[%emt 0:00:54]} (29. Kd2 $1 $11 Rxe7 30. Nxa6) 29... Rxe7 $19 {[%emt 0:00:06]} 30. Nxa6 {[%emt 0:00:04]} Rfe8 {[%emt 0:00:11]} 31. Kd2 {[%emt 0:00:48] [#]} Rd7+ $1 {[%emt 0:00:24][%mdl 1024] Black has strong compensation.} 32. Kc1 {[%emt 0:00:33]} Re3 {[%emt 0:00:31] Strongly threatening ...Ne6.} 33. b4 $2 {[%emt 0:00:39]} (33. Bf1) 33... Ne6 {[%emt 0:01:30] And now ...Nd4 would win.} 34. Kc2 $2 {[%emt 0:00:31]} (34. bxc5 Nd4 35. Bf1) 34... Nd4+ {[%emt 0:02:20] Black is clearly winning.} ({Not} 34... Ra3 35. Nc3 Nd4+ 36. Kb2 Rxa6 37. Re8+ Kc7 38. Bf1 $17) 35. Kd2 {[%emt 0:00:27]} Ra3 {[%emt 0:00:37]} 36. Nxd4 {[%emt 0:00:33]} Rxd4+ {[%emt 0:00:08]} 37. Kc1 {[%emt 0:00:22]} Rxa6 {[%emt 0:00:27]} 38. Re8+ {[%emt 0:00:38]} Kd7 {[%emt 0:00:15]} 39. Rh8 {[%emt 0:00:00]} Rxa2 {[%emt 0:00:00]} 40. Rxh7+ {[%emt 0:00:00]} Kd6 {[%emt 0:00:00] Weighted Error Value: White=0.61/Black=0.25 (precise)} 0-1

[Event "Romanian Superleague 2022"]
[Site "Oradea"]
[Date "2022.09.26"]
[Round "6.14"]
[White "Szabo, Gergely-Andras-Gyula"]
[Black "Padurariu, Mihai-Edward"]
[Result "1-0"]
[ECO "B10"]
[WhiteElo "2512"]
[BlackElo "2263"]
[Annotator "TA"]
[PlyCount "87"]
[EventDate "2022.09.21"]
[EventType "team-tourn"]
[EventCountry "ROU"]
[SourceTitle "playchess.com"]
[Source "ChessBase"]
[SourceQuality "1"]
[TimeControl "40/5400+30:1800+30"]

{[%evp 9,87,22,17,8,16,13,20,18,25,20,15,14,21,12,16,14,15,13,42,31,41,35,41,19,19,20,17,20,22,0,0,0,0,0,0,0,0,0,17,17,31,20,61,46,50,57,47,60,79,81,64,18,84,75,171,110,134,134,133,108,183,103,342,340,335,336,340,325,407,354,1456,1318,29988,29989,29993,29993,29996,29997,29997,29998]} 1. e4 {[%emt 0:00:11]} c6 {[%emt 0:00:14]} 2. Nf3 {[%emt 0:00:07]} d5 {[%emt 0:00:09]} 3. d3 {[%emt 0:00:04]} g6 {[%emt 0:00:43]} 4. e5 {[%emt 0:00:13]} Bg7 {[%emt 0:00:32]} 5. d4 {[%emt 0:00:40]} f6 {[%emt 0:00:51]} 6. exf6 {[%emt 0:00:51] B10: Caro-Kann: 2 d3 and 2 c4.} exf6 {[%emt 0:00:30]} 7. Be2 {[%emt 0:00:51] [#]} Ne7 $146 {[%emt 0:06:20]} ({Predecessor:} 7... Nh6 8. O-O O-O 9. c4 Be6 10. cxd5 Bxd5 11. Nc3 Bf7 12. h3 Re8 13. Bf4 Nf5 {1-0 (50) Sjugirov,S (2680)-Domingo Nunez,A (2311) Chess.com INT 2022}) 8. O-O {[%emt 0:00:20] The position is equal.} O-O {[%emt 0:00:07]} 9. h3 {[%emt 0:00:36]} Re8 {[%emt 0:03:39]} 10. Re1 {[%emt 0:12:42]} Nd7 {[%emt 0:03:59]} 11. b3 {[%emt 0:09:34]} Nf8 {[%emt 0:05:52]} 12. c4 {[%emt 0:03:02]} Be6 {[%emt 0:06:23]} 13. Nc3 {[%emt 0:02:18]} g5 {[%emt 0:09:46]} 14. Bd3 {[%emt 0:04:13]} Qd7 {[%emt 0:03:36]} 15. Ba3 {[%emt 0:12:14]} Nfg6 {[%emt 0:04:44]} 16. Qc2 {[%emt 0:03:54]} Bf5 {[%emt 0:16:01]} 17. Bxe7 {[%emt 0:10:42]} Bxd3 {[%emt 0:00:15]} 18. Qxd3 {[%emt 0:00:05]} Nxe7 {[%emt 0:02:58]} 19. Re2 {[%emt 0:01:02]} Ng6 {[%emt 0:01:45]} 20. Rae1 {[%emt 0:02:16]} Nf4 {[%emt 0:09:26][%csl LRd3,LRe2]} 21. Rxe8+ {[%emt 0:03:01]} Rxe8 {[%emt 0:00:06]} 22. Rxe8+ {[%emt 0:04:40]} Qxe8 {[%emt 0:00:01]} 23. Qe3 {[%emt 0:06:48]} Qd7 {[%emt 0:04:07]} 24. cxd5 {[%emt 0:06:12]} Nxd5 {[%emt 0:06:19]} 25. Nxd5 {[%emt 0:00:07]} Qxd5 $11 {[%emt 0:00:01][%mdl 4096] Endgame KQB-KQN} 26. Qe7 {[%emt 0:06:24]} Qf7 {[%emt 0:00:19]} 27. Qc5 $36 {[%emt 0:00:54][%mdl 2048] White has good play.} a6 {[%emt 0:02:28]} 28. Qf5 {[%emt 0:00:34] Prevents Qd7.} Bf8 {[%emt 0:03:32]} 29. h4 {[%emt 0:04:40]} h6 {[%emt 0:00:44]} 30. g4 {[%emt 0:00:08]} (30. Nh2 $14 {should be considered.}) 30... Bd6 {[%emt 0:03:58]} (30... Qd5 $11 {keeps the balance.}) 31. h5 $16 {[%emt 0:02:14]} Bf4 {[%emt 0:01:17] [#] Prevents Nd2.} (31... Bf8 $16 {might work better.}) 32. Kg2 {[%emt 0:01:07]} (32. Nh4 $1 $18 {[%mdl 512]}) 32... Kg7 {[%emt 0:00:18]} 33. Kf1 {[%emt 0:02:27] White is more active.} Qe8 {[%emt 0:01:06]} 34. d5 {[%emt 0:00:46][%cal Bd4d5,Bd5d6,Bd6d7][%mdl 32]} c5 {[%emt 0:01:00] Against Nd4} (34... cxd5 $16 35. Qxd5 Qf7 36. Qxf7+ Kxf7) 35. Kg2 {[%emt 0:00:52]} (35. Ne1 $18) 35... b5 $2 {[%emt 0:02:22] [#] This costs Black the game.} (35... b6 $16) 36. b4 $1 $18 {[%emt 0:00:17]} c4 {[%emt 0:00:57]} 37. Nd4 {[%emt 0:00:02]} Be5 {[%emt 0:00:45] [#]} 38. Qe4 {[%emt 0:00:49] Hoping for Nf5+.} Kh8 {[%emt 0:01:22]} 39. d6 {[%emt 0:00:48] Threatens to win with Nf5.} c3 $2 {[%emt 0:00:53]} (39... Qd7 40. Nf5 Bxd6) 40. Nf5 {[%emt 0:00:00] Qb7 would kill now.} Qf8 {[%emt 0:00:00]} 41. d7 {[%emt 0:04:41] White mates.} Qd8 {[%emt 0:16:43]} 42. Qd5 {[%emt 0:00:22]} c2 {[%emt 0:00:37]} 43. Qf7 {[%emt 0:00:10][%csl Gf5][%cal Rf7g7]} Qa8+ {[%emt 0:00:08]} 44. f3 {[%emt 0:00:03] Weighted Error Value: White=0.09 (flawless) /Black=0.43} 1-0

[Event "Romanian Superleague 2022"]
[Site "Oradea"]
[Date "2022.09.26"]
[Round "6.15"]
[White "Voiteanu, Gabriel"]
[Black "Nevednichy, Vladislav"]
[Result "0-1"]
[ECO "E04"]
[WhiteElo "2154"]
[BlackElo "2472"]
[Annotator "TA"]
[PlyCount "128"]
[EventDate "2022.09.21"]
[EventType "team-tourn"]
[EventCountry "ROU"]
[SourceTitle "playchess.com"]
[Source "ChessBase"]
[SourceQuality "1"]
[TimeControl "40/5400+30:1800+30"]

{[%evp 16,128,-12,-27,-9,-13,-19,-41,-10,-10,-14,-6,0,-56,-57,-55,-52,-62,-56,-54,-57,-47,-45,-45,-34,-31,0,0,0,-26,-37,-125,-127,-217,-219,-189,-186,-198,-206,-194,-167,-157,-131,-195,-210,-292,-251,-242,-248,-254,-250,-240,-246,-391,-383,-495,-500,-779,-776,-742,-735,-675,-408,-396,-379,-648,-618,-626,-618,-793,-765,-745,-691,-606,-379,-414,-414,-407,-435,-427,-424,-417,-422,-396,-331,-508,-507,-501,-477,-459,-430,-1662,-1528,-5887,-5695,-29978,-29979,-29979,-29980,-29980,-29981,-29981,-29982,-29982,-29983,-29983,-29982,-29982,-29983,-29985,-29986,-29984,-29985,-29987,-29988]} 1. d4 {[%emt 0:01:51]} Nf6 {[%emt 0:00:04]} 2. c4 {[%emt 0:00:38]} e6 {[%emt 0:00:07]} 3. Nf3 {[%emt 0:00:12]} d5 {[%emt 0:00:05]} 4. g3 {[%emt 0:00:22]} Bb4+ {[%emt 0:00:07]} 5. Bd2 {[%emt 0:00:13]} a5 {[%emt 0:00:10]} 6. Bg2 {[%emt 0:01:42]} dxc4 {[%emt 0:00:39]} 7. Bxb4 {[%emt 0:08:32]} axb4 {[%emt 0:00:40]} 8. Ne5 {[%emt 0:00:08]} O-O {[%emt 0:03:14]} 9. O-O {[%emt 0:02:47]} Nc6 {[%emt 0:00:38] E04: Open Catalan: 5 Nf3.} 10. Nxc6 {[%emt 0:01:49]} bxc6 {[%emt 0:03:20]} 11. Bxc6 {[%emt 0:02:11]} Rb8 {[%emt 0:11:41] [#] Black is slightly better.} 12. a3 $146 {[%emt 0:11:55]} ({Predecessor:} 12. Bf3 Qd6 13. e3 Ba6 14. Be2 c5 15. Nd2 Qd5 16. Rc1 cxd4 17. Bxc4 Bxc4 18. Rxc4 dxe3 19. fxe3 {0-1 (43) Gyerpal,A (2193)-Butkiewicz,L (2370) Pardubice 2022}) 12... Qd6 {[%emt 0:00:40]} 13. Bg2 {[%emt 0:04:10]} e5 {[%emt 0:11:00]} 14. e3 {[%emt 0:12:00]} (14. d5 $11) 14... Bf5 $15 {[%emt 0:12:35]} 15. dxe5 {[%emt 0:04:57]} Qxe5 {[%emt 0:00:17]} 16. Qd4 {[%emt 0:00:36]} Qxd4 {[%emt 0:00:47] Black is more active.} 17. exd4 {[%emt 0:00:02]} Rfd8 $36 {[%emt 0:09:44][%mdl 2048] White is under pressure.} 18. axb4 {[%emt 0:01:56]} Rxb4 {[%emt 0:01:02]} 19. Na3 {[%emt 0:05:45]} Kf8 {[%emt 0:04:53]} (19... Rxd4 $2 {[#]} 20. Nc2 $1 {[%mdl 512]} g6 21. Nxb4 $18) 20. Rfd1 {[%emt 0:05:53]} Bd3 {[%emt 0:00:38]} 21. Rac1 {[%emt 0:00:59]} h5 {[%emt 0:15:12]} (21... Rxd4 22. Nc2 Bxc2 23. Rxd4 $16) 22. h4 {[%emt 0:02:15]} Ng4 {[%emt 0:02:48]} ({Don't take} 22... Rxd4 23. Nc2 Bxc2 24. Rxd4 $16) 23. Rd2 {[%emt 0:13:31]} (23. Bh3 $15) 23... Rxd4 $17 {[%emt 0:00:50]} 24. Rc3 {[%emt 0:06:03]} (24. Nb1 $17 {is a better defense.}) 24... c5 $19 {[%emt 0:00:56]} 25. Rc1 {[%emt 0:03:59]} g6 {[%emt 0:02:52]} 26. Re1 {[%emt 0:00:45]} Bf5 {[%emt 0:01:48]} 27. Rde2 {[%emt 0:01:32]} Rd8 {[%emt 0:00:38]} 28. f3 {[%emt 0:03:53]} Nf6 {[%emt 0:00:08]} 29. Rc1 {[%emt 0:00:18]} (29. Bf1 $17) 29... Bd3 {[%emt 0:00:59]} 30. Re5 {[%emt 0:00:27]} Rd5 {[%emt 0:01:30]} 31. Ree1 {[%emt 0:02:03]} Nd7 {[%emt 0:02:05]} ({Weaker is} 31... Rxb2 32. Nxc4 Bxc4 33. Rxc4) 32. f4 {[%emt 0:01:35]} Rd6 {[%emt 0:00:06]} 33. Red1 {[%emt 0:00:22]} Rd4 {[%emt 0:02:15]} ({But not} 33... Rxb2 34. Nxc4 Bxc4 35. Rxd6 $14) 34. Bf1 {[%emt 0:01:19]} (34. Bc6 $142 Nb6 35. Nb5) 34... Nb6 {[%emt 0:01:44]} 35. Re1 {[%emt 0:00:39]} Rxb2 {[%emt 0:00:40]} 36. Nb1 {[%emt 0:00:38]} (36. Bg2 $142) 36... Bxb1 {[%emt 0:00:44]} 37. Rxb1 {[%emt 0:00:01]} c3 {[%emt 0:00:57] aiming for ...Rxb1.} 38. Rbc1 {[%emt 0:00:19]} c2 {[%emt 0:03:04]} 39. Re2 {[%emt 0:00:38]} Rc4 {[%emt 0:00:12] White must now prevent ...Nd5.} 40. Rd2 {[%emt 0:00:00] Prevents Nd5.} (40. Bg2) 40... Rc3 {[%emt 0:00:00]} 41. Kf2 {[%emt 0:03:05] [#]} Nd5 $1 {[%emt 0:01:10][%mdl 512]} 42. f5 {[%emt 0:01:51] [#]} (42. Rxd5 Rb1) 42... gxf5 $1 {[%emt 0:01:02]} 43. Bd3 {[%emt 0:00:42]} (43. Rd3 Rbb3) 43... f4 {[%emt 0:01:06]} 44. gxf4 {[%emt 0:02:34]} Nxf4 {[%emt 0:00:06]} 45. Bf5 {[%emt 0:00:23]} Ng6 {[%emt 0:08:10]} 46. Rcxc2 {[%emt 0:13:54]} Rcxc2 {[%emt 0:00:28]} 47. Bxc2 {[%emt 0:01:44]} Nxh4 {[%emt 0:01:00][%mdl 4096] Endgame Strongly threatening ...Nf5. KRB-KRN} 48. Ke3 {[%emt 0:00:13]} Ng6 {[%emt 0:10:47]} 49. Kd3 {[%emt 0:00:31]} Rb4 {[%emt 0:00:20] Threatens to win with ...Rd4+.} 50. Kc3 {[%emt 0:00:29] Prevents Rd4.} (50. Ke3 {might work better.}) 50... h4 {[%emt 0:00:04]} 51. Bf5 {[%emt 0:05:25]} Rf4 {[%emt 0:00:15]} 52. Bc8 {[%emt 0:00:07]} Kg7 {[%emt 0:01:36]} 53. Rd5 {[%emt 0:00:57]} (53. Rg2 $142) 53... Ne7 {[%emt 0:00:27]} 54. Rxc5 {[%emt 0:00:02]} Nxc8 {[%emt 0:00:09]} 55. Rxc8 {[%emt 0:00:01] KR-KR} h3 {[%emt 0:01:22] Black mates.} 56. Kd3 {[%emt 0:00:59]} h2 {[%emt 0:00:09]} 57. Rc1 {[%emt 0:00:02]} Rh4 {[%emt 0:00:57]} 58. Rh1 {[%emt 0:00:04]} Kg6 {[%emt 0:00:27]} 59. Ke3 {[%emt 0:00:19]} Kg5 {[%emt 0:00:07]} 60. Kf3 {[%emt 0:00:09]} Rh3+ {[%emt 0:00:28]} 61. Kg2 {[%emt 0:00:24]} Kg4 {[%emt 0:00:06]} 62. Kf2 {[%emt 0:00:05]} f5 {[%emt 0:00:25][%cal Bf7f5,Bf5f4][%mdl 32]} 63. Kg2 {[%emt 0:00:31]} f4 {[%emt 0:00:20]} 64. Ra1 {[%emt 0:00:26]} h1=Q+ {[%emt 0:00:06] Weighted Error Value: White=0.40/Black=0.21 (precise)} 0-1

[Event "Romanian Superleague 2022"]
[Site "Oradea"]
[Date "2022.09.26"]
[Round "6.16"]
[White "Stoleriu, George"]
[Black "Oprisor, Razvan-Gabriel"]
[Result "1-0"]
[ECO "B07"]
[WhiteElo "2392"]
[BlackElo "2175"]
[Annotator "TA"]
[PlyCount "147"]
[EventDate "2022.09.21"]
[EventType "team-tourn"]
[EventCountry "ROU"]
[SourceTitle "playchess.com"]
[Source "ChessBase"]
[SourceQuality "1"]
[TimeControl "40/5400+30:1800+30"]

{[%evp 16,147,68,62,56,80,62,74,58,29,45,12,61,33,94,70,63,47,47,41,48,41,34,37,38,20,19,0,97,79,100,93,131,122,131,129,108,68,92,81,91,73,74,90,128,131,150,87,230,227,225,138,120,89,99,78,149,17,16,9,30,32,68,72,74,0,41,0,72,72,78,78,70,22,20,20,21,25,24,27,35,33,29,37,31,25,26,31,35,16,64,53,68,62,106,83,449,430,360,306,777,504,6061,12697,1945,1705,12822,12823,12824,12824,12825,12822,12833,12834,12833,12831,12843,12839,12839,12839,12840,12840,12841,12841,12841,12842,12842,12842,12845,12846,12847,12847,12850,12850]} 1. e4 {[%emt 0:00:04]} d6 {[%emt 0:00:11]} 2. d4 {[%emt 0:00:09]} Nf6 {[%emt 0:00:20]} 3. Nc3 {[%emt 0:00:05]} c6 {[%emt 0:00:17]} 4. f4 {[%emt 0:00:06]} Qa5 {[%emt 0:00:36]} 5. Bd3 {[%emt 0:01:02]} e5 {[%emt 0:00:24]} 6. Nf3 {[%emt 0:00:06]} Bg4 {[%emt 0:08:39]} 7. Be3 {[%emt 0:08:38]} Nbd7 {[%emt 0:06:54]} 8. O-O {[%emt 0:06:18]} Be7 {[%emt 0:07:31]} 9. h3 {[%emt 0:09:11]} Bh5 {[%emt 0:04:11] B07: Pirc Defence: Miscellaneous Systems.} 10. g4 {[%emt 0:18:22]} exf4 {[%emt 0:00:07]} 11. Bxf4 {[%emt 0:00:02]} Bg6 {[%emt 0:00:07] White is better.} 12. Qd2 {[%emt 0:00:10]} Qb6 {[%emt 0:07:58] [#]} 13. a4 $146 {[%emt 0:11:12]} ({Predecessor:} 13. Na4 Qd8 14. Rae1 O-O 15. c4 h6 16. Kg2 Re8 17. e5 dxe5 18. dxe5 Bxd3 19. Qxd3 {1-0 (32) Hintze,E (2012)-Bonoldi,F (1915) LSS email 2010}) 13... a5 {[%emt 0:00:58]} (13... Ne5 $11) 14. Kh1 {[%emt 0:03:58]} Nf8 {[%emt 0:06:42]} ({Better is} 14... O-O $14) 15. d5 {[%emt 0:23:16]} N8d7 {[%emt 0:12:32]} 16. Be3 {[%emt 0:09:29]} Qc7 {[%emt 0:04:21]} (16... Qxb2 $2 17. Rfb1 Qb4 18. Rxb4 $18) 17. Nd4 {[%emt 0:00:36]} Ne5 {[%emt 0:03:10]} 18. Nf5 $36 {[%emt 0:03:11][%mdl 2048] White fights for an advantage.} Bxf5 {[%emt 0:02:12]} 19. exf5 {[%emt 0:00:04]} h6 {[%emt 0:01:44]} 20. Rae1 {[%emt 0:00:28]} Nh7 {[%emt 0:06:47]} 21. Bd4 {[%emt 0:01:57]} Bf6 {[%emt 0:02:28]} (21... Bh4 $11 {remains equal.}) 22. Ne4 {[%emt 0:00:33]} Kf8 {[%emt 0:03:05]} 23. Qc3 {[%emt 0:01:16]} Nd7 {[%emt 0:03:19]} 24. dxc6 {[%emt 0:01:41]} bxc6 {[%emt 0:00:18]} 25. Nxf6 {[%emt 0:00:22] White is much more active.} Nhxf6 {[%emt 0:00:15]} 26. Bg1 {[%emt 0:00:41]} Nd5 {[%emt 0:04:11]} 27. Qd4 {[%emt 0:00:14]} Ne5 {[%emt 0:01:37]} 28. Be4 {[%emt 0:00:11]} Nf6 {[%emt 0:01:40]} 29. Bg2 {[%emt 0:00:02]} c5 {[%emt 0:12:26]} 30. Qc3 {[%emt 0:01:16]} Re8 {[%emt 0:00:00]} 31. Re2 {[%emt 0:00:42]} (31. Be3 $142) 31... Nfd7 {[%emt 0:00:00]} (31... Kg8 $16 {was worth a try.}) 32. Rd1 $18 {[%emt 0:00:08]} f6 {[%emt 0:00:00]} 33. Qd2 {[%emt 0:00:18]} Nf7 {[%emt 0:00:00]} 34. Re6 {[%emt 0:00:48]} Nde5 {[%emt 0:00:00]} 35. Qd5 {[%emt 0:00:23]} h5 {[%emt 0:00:00]} (35... Rd8 $142) 36. Rxe8+ {[%emt 0:00:36]} (36. g5 $1 $16 {[%cal Rg5g6]} fxg5 37. Qe4 (37. Rxe8+ Kxe8 38. Bh2 Rh6 $14)) 36... Kxe8 $11 {[%emt 0:00:00]} 37. gxh5 {[%emt 0:00:48]} Rxh5 {[%emt 0:00:16]} 38. Qe6+ {[%emt 0:00:12]} Qe7 {[%emt 0:00:53]} 39. Qc8+ {[%emt 0:00:19]} Qd8 {[%emt 0:00:17]} 40. Qe6+ {[%emt 0:00:00]} Qe7 {[%emt 0:00:00]} 41. Qc8+ {[%emt 0:06:25]} Qd8 $1 {[%emt 0:03:51]} 42. Qxd8+ {[%emt 0:01:30]} Kxd8 {[%emt 0:00:16]} 43. Bxc5 $1 {[%emt 0:00:04]} Kc7 {[%emt 0:00:14]} 44. Bg1 {[%emt 0:00:44] A strong pair of Bishops.} ({White should play} 44. Be3 $14) 44... Ng5 $1 {[%emt 0:01:43]} 45. Rd5 {[%emt 0:05:10]} Nxh3 {[%emt 0:01:54]} 46. Bxh3 {[%emt 0:00:52]} Rxh3+ {[%emt 0:00:11][%mdl 4096] Endgame KRB-KRN} 47. Kg2 {[%emt 0:00:01]} Rh5 {[%emt 0:00:13]} 48. Rxa5 {[%emt 0:08:15] Hoping for Ra7+.} Rg5+ {[%emt 0:02:25]} 49. Kf1 {[%emt 0:00:16]} Rxf5+ {[%emt 0:00:07]} 50. Ke2 {[%emt 0:00:03]} Rg5 {[%emt 0:01:05]} 51. Bf2 {[%emt 0:00:06]} f5 {[%emt 0:03:30]} 52. Ra8 {[%emt 0:06:24] Strongly threatening a5.} Rg2 {[%emt 0:07:03]} (52... f4 $1 $11) 53. Kf1 $14 {[%emt 0:00:34]} Rh2 {[%emt 0:01:52]} 54. a5 $1 {[%emt 0:01:45][%cal Ba4a5,Ba5a6,Ba6a7][%mdl 32] Black must now prevent a6.} ({Don't play} 54. Ra7+ Kc6 $11) 54... Rh1+ $1 {[%emt 0:10:08] Black is now going downhill.} 55. Kg2 $1 {[%emt 0:01:50]} Rb1 {[%emt 0:02:56][%mdl 8192]} (55... Ra1 $16) 56. a6 $1 $18 {[%emt 0:00:46]} Nc6 {[%emt 0:01:47]} (56... Rxb2 $2 57. a7 $18) 57. a7 $1 {[%emt 0:03:11]} Kb7 {[%emt 0:00:17] Against Rc8} (57... Nxa7 58. Rxa7+ Kb8) 58. Rg8 {[%emt 0:00:08] White is clearly winning.} Nxa7 {[%emt 0:00:11]} (58... Ra1 $142 59. Rxg7+ Ka8) 59. Rxg7+ {[%emt 0:00:04]} Kc6 {[%emt 0:01:36]} 60. Rxa7 {[%emt 0:00:32]} Rxb2 {[%emt 0:00:07] [#] KRB-KR} 61. c3 $1 {[%emt 0:00:04]} Rc2 {[%emt 0:02:23] [#]} 62. Ra3 $1 {[%emt 0:00:03]} Kd5 {[%emt 0:00:11]} 63. Kf3 {[%emt 0:00:15]} Kc4 {[%emt 0:00:19]} 64. Bd4 {[%emt 0:00:02]} Rc1 {[%emt 0:00:08]} 65. Ra5 {[%emt 0:00:26]} Kd3 {[%emt 0:00:20]} 66. Rxf5 {[%emt 0:00:18]} Kc4 {[%emt 0:00:29]} 67. Rf6 {[%emt 0:01:04]} Kd5 {[%emt 0:00:22]} 68. Ke2 {[%emt 0:00:07]} Rh1 {[%emt 0:00:14]} 69. Kd3 {[%emt 0:00:41]} Rd1+ {[%emt 0:00:07]} 70. Kc2 {[%emt 0:00:08]} Rh1 {[%emt 0:00:06]} 71. Rg6 {[%emt 0:00:24]} Rh3 {[%emt 0:02:15]} 72. Kb3 {[%emt 0:00:28]} Rh5 {[%emt 0:00:25]} 73. Be3 {[%emt 0:01:04]} Rh3 {[%emt 0:00:24]} 74. Bf4 {[%emt 0:00:11] Weighted Error Value: White=0.16 (very precise) /Black=0.31} 1-0

[Event "Romanian Superleague 2022"]
[Site "Oradea"]
[Date "2022.09.26"]
[Round "6.17"]
[White "Levay, Sorin"]
[Black "Danilov, Vladimir"]
[Result "1/2-1/2"]
[ECO "C46"]
[WhiteElo "2138"]
[BlackElo "2378"]
[Annotator "TA"]
[PlyCount "35"]
[EventDate "2022.09.21"]
[EventType "team-tourn"]
[EventCountry "ROU"]
[SourceTitle "playchess.com"]
[Source "ChessBase"]
[SourceQuality "1"]
[TimeControl "40/5400+30:1800+30"]

{[%evp 12,35,46,22,73,89,78,70,66,61,57,65,80,87,85,61,54,54,60,0,45,39,50,45,43,41]} 1. e4 {[%emt 0:00:13]} e5 {[%emt 0:00:04]} 2. Nc3 {[%emt 0:00:05]} Bc5 {[%emt 0:04:19]} 3. Nf3 {[%emt 0:01:06]} Nc6 {[%emt 0:02:48]} 4. Nxe5 {[%emt 0:00:12]} Nxe5 {[%emt 0:00:36]} 5. d4 {[%emt 0:00:08]} Bd6 {[%emt 0:00:48]} 6. dxe5 {[%emt 0:00:07]} Bxe5 {[%emt 0:00:01]} 7. Qd3 {[%emt 0:00:13]} (7. f4 $5 {[%cal Rf4e5]} Bxc3+ 8. bxc3 $14) 7... c6 {[%emt 0:01:34] C46: 3 Nc3: Unusual Black 3rd moves.} (7... Nf6 $11) 8. f4 $16 {[%emt 0:02:12]} Bc7 {[%emt 0:02:19][%cal Of7f5]} 9. Bd2 {[%emt 0:01:06]} Ne7 {[%emt 0:01:27]} 10. O-O-O {[%emt 0:08:15] White is more active.} O-O {[%emt 0:11:07] [#]} 11. f5 $146 {[%emt 0:04:48]} ({Predecessor:} 11. Qf3 b5 12. g4 a5 13. h4 b4 14. Na4 d5 15. e5 f6 16. exf6 Rxf6 17. Bd3 {½-½ (45) Lam,S (2080)-Alba Santana,C (1845) Las Palmas 2017}) 11... Be5 {[%emt 0:03:01]} 12. g4 {[%emt 0:00:24]} b5 {[%emt 0:02:44]} 13. Qf3 {[%emt 0:07:36]} Qc7 {[%emt 0:04:54]} 14. Ne2 {[%emt 0:08:06]} d5 {[%emt 0:00:34]} 15. Nf4 {[%emt 0:05:54]} (15. Bf4 $14) 15... Rd8 {[%emt 0:03:50] [#] Strongly threatening ...dxe4.} 16. Nd3 {[%emt 0:02:27] White is slightly better.} dxe4 {[%emt 0:05:25]} 17. Qxe4 {[%emt 0:00:11]} Bd6 {[%emt 0:00:10]} 18. Bg2 {[%emt 0:05:07] Weighted Error Value: White=0.12 (very precise) /Black=0.11 (very precise)} 1/2-1/2